fUSD/lending_fUSD_20250219
["ID","MTS","AMOUNT","RATE_DAILY","PERIOD"]
[353590082,1739945441783,-500.0,0.00016438,2]
[353590083,1739945441792,-699.24,0.00016438,2]
[353590084,1739945441801,-150.0,0.00016438,2]
[353590085,1739945441810,-500.0,0.00016438,2]
[353590086,1739945441819,-500.0,0.00016438,2]
[353590087,1739945441828,-500.0,0.00016438,2]
[353590088,1739945441838,-504.8550081,0.00016438,2]
[353590089,1739945441847,-647.12,0.00016438,2]
[353590090,1739945441857,-448.09788364,0.00016438,2]
[353590091,1739945441867,-762.89,0.00016438,2]
[353590092,1739945441876,-500.0,0.00016438,2]
[353590093,1739945441887,-500.0,0.00016438,2]
[353590094,1739945441896,-376.80578716,0.00016438,2]
[353590096,1739945441906,-500.0,0.00016438,2]
[353590097,1739945441915,-500.0,0.00016438,2]
[353590099,1739945441924,-500.0,0.00016438,2]
[353590102,1739945441934,-500.0,0.00016438,2]
[353590104,1739945441943,-500.0,0.00016438,2]
[353590105,1739945441954,-544.04,0.00016438,2]
[353590108,1739945441964,-678.42,0.00016438,2]
[353590110,1739945441974,-620.76,0.00016438,2]
[353590112,1739945441983,-561.65,0.00016438,2]
[353590114,1739945441992,-500.0,0.00016438,2]
[353590116,1739945442005,-500.0,0.00016438,2]
[353590118,1739945442015,-504.861704,0.00016438,2]
[353590120,1739945442024,-500.0,0.00016438,2]
[353590122,1739945442033,-500.0,0.00016438,2]
[353590123,1739945442042,-500.0,0.00016438,2]
[353590126,1739945442053,-500.0,0.00016438,2]
[353590128,1739945442062,-500.0,0.00016438,2]
[353590129,1739945442071,-887.09,0.00016438,2]
[353590131,1739945442083,-676.8,0.00016438,2]
[353590133,1739945442093,-500.0,0.00016438,2]
[353590136,1739945442102,-500.0,0.00016438,2]
[353590137,1739945442111,-500.0,0.00016438,2]
[353590140,1739945442121,-260.35267547,0.00016438,2]
[353590141,1739945442130,-500.0,0.00016438,2]
[353590143,1739945442139,-500.0,0.00016438,2]
[353590145,1739945442148,-503.01905835,0.00016438,2]
[353590147,1739945442158,-500.0,0.00016438,2]
[353590149,1739945442167,-538.11,0.00016438,2]
[353590151,1739945442176,-574.12,0.00016438,2]
[353590153,1739945442186,-510.26233762,0.00016438,2]
[353590155,1739945442195,-500.0,0.00016438,2]
[353590157,1739945442205,-500.0,0.00016438,2]
[353590159,1739945442215,-500.0,0.00016438,2]
[353590161,1739945442225,-500.0,0.00016438,2]
[353590163,1739945442234,-500.0,0.00016438,2]
[353590166,1739945442244,-500.0,0.00016438,2]
[353590168,1739945442254,-500.0,0.00016438,2]
[353590170,1739945442263,-500.0,0.00016438,2]
[353590172,1739945442274,-657.96,0.00016438,2]
[353590174,1739945442284,-500.0,0.00016438,2]
[353590176,1739945442294,-500.0,0.00016438,2]
[353590178,1739945442303,-500.0,0.00016438,2]
[353590180,1739945442314,-228.13749925,0.00016438,2]
[353590181,1739945442323,-500.0,0.00016438,2]
[353590183,1739945442333,-521.67,0.00016438,2]
[353590185,1739945442343,-500.0,0.00016438,2]
[353590187,1739945442353,-500.3,0.00016438,2]
[353590189,1739945442362,-241.24738466,0.00016438,2]
[353590191,1739945442372,-500.0,0.00016438,2]
[353590193,1739945442382,-500.0,0.00016438,2]
[353590195,1739945442392,-500.0,0.00016438,2]
[353590197,1739945442401,-296.37102057,0.00016438,2]
[353590199,1739945442410,-685.4,0.00016438,2]
[353590201,1739945442420,-511.10498542,0.00016438,2]
[353590203,1739945442430,-500.0,0.00016438,2]
[353590205,1739945442441,-500.0,0.00016438,2]
[353590207,1739945442451,-500.0,0.00016438,2]
[353590209,1739945442460,-500.0,0.00016438,2]
[353590210,1739945442470,-511.2796862,0.00016438,2]
[353590212,1739945442480,-562.44195922,0.00016438,2]
[353590214,1739945442490,-440.26328707,0.00016438,2]
[353590216,1739945442500,-710.56,0.00016438,2]
[353590218,1739945442509,-500.0,0.00016438,2]
[353590220,1739945442519,-627.28,0.00016438,2]
[353590222,1739945442528,-500.0,0.00016438,2]
[353590224,1739945442538,-500.0,0.00016438,2]
[353590226,1739945442548,-500.0,0.00016438,2]
[353590228,1739945442558,-500.0,0.00016438,2]
[353590230,1739945442568,-529.27,0.00016438,2]
[353590232,1739945442578,-500.0,0.00016438,2]
[353590234,1739945442588,-151.0,0.00016438,2]
[353590236,1739945442598,-151.0,0.00016438,2]
[353590238,1739945442608,-151.0,0.00016438,2]
[353590240,1739945442618,-151.0,0.00016438,2]
[353590242,1739945442628,-151.0,0.00016438,2]
[353590244,1739945442638,-248.28899756,0.00016438,2]
[353590246,1739945442648,-500.0,0.00016438,2]
[353590249,1739945442657,-500.0,0.00016438,2]
[353590252,1739945442667,-798.52,0.00016438,2]
[353590255,1739945442677,-500.0,0.00016438,2]
[353590257,1739945442686,-294.60830113,0.00016438,2]
[353590259,1739945442696,-500.0,0.00016438,2]
[353590261,1739945442706,-500.0,0.00016438,2]
[353590263,1739945442716,-500.0,0.00016438,2]
[353590265,1739945442725,-500.0,0.00016438,2]
[353590267,1739945442736,-500.0,0.00016438,2]
[353590269,1739945442745,-500.0,0.00016438,2]
[353590271,1739945442755,-886.95,0.00016438,2]
[353590274,1739945442765,-151.0,0.00016438,2]
[353590278,1739945442775,-705.44,0.00016438,2]
[353590282,1739945442784,-500.0,0.00016438,2]
[353590286,1739945442796,-500.0,0.00016438,2]
[353590290,1739945442805,-500.0,0.00016438,2]
[353590294,1739945442815,-500.0,0.00016438,2]
[353590296,1739945442824,-500.0,0.00016438,2]
[353590300,1739945442834,-500.0,0.00016438,2]
[353590302,1739945442843,-500.0,0.00016438,2]
[353590305,1739945442853,-504.90660769,0.00016438,2]
[353590307,1739945442863,-500.0,0.00016438,2]
[353590309,1739945442876,-507.41890617,0.00016438,2]
[353590311,1739945442888,-500.0,0.00016438,2]
[353590313,1739945442898,-560.14,0.00016438,2]
[353590315,1739945442908,-644.78,0.00016438,2]
[353590317,1739945442917,-500.0,0.00016438,2]
[353590319,1739945442927,-500.0,0.00016438,2]
[353590320,1739945442937,-500.0,0.00016438,2]
[353590323,1739945442947,-500.0,0.00016438,2]
[353590325,1739945442958,-500.0,0.00016438,2]
[353590326,1739945442968,-500.0,0.00016438,2]
[353590328,1739945442977,-500.0,0.00016438,2]
[353590330,1739945442987,-500.0,0.00016438,2]
[353590332,1739945442998,-500.0,0.00016438,2]
[353590334,1739945443012,-500.0,0.00016438,2]
[353590336,1739945443022,-500.0,0.00016438,2]
[353590338,1739945443032,-500.0,0.00016438,2]
[353590340,1739945443042,-500.0,0.00016438,2]
[353590342,1739945443054,-500.0,0.00016438,2]
[353590344,1739945443063,-500.0,0.00016438,2]
[353590346,1739945443073,-507.3793264,0.00016438,2]
[353590348,1739945443083,-500.0,0.00016438,2]
[353590350,1739945443093,-500.0,0.00016438,2]
[353590352,1739945443103,-500.0,0.00016438,2]
[353590354,1739945443112,-500.0,0.00016438,2]
[353590356,1739945443122,-500.0,0.00016438,2]
[353590358,1739945443131,-511.84,0.00016438,2]
[353590360,1739945443141,-500.0,0.00016438,2]
[353590362,1739945443150,-704.68,0.00016438,2]
[353590364,1739945443160,-500.0,0.00016438,2]
[353590366,1739945443169,-500.0,0.00016438,2]
[353590368,1739945443178,-151.0,0.00016438,2]
[353590370,1739945443187,-151.0,0.00016438,2]
[353590372,1739945443197,-500.0,0.00016438,2]
[353590374,1739945443207,-151.0,0.00016438,2]
[353590376,1739945443216,-500.0,0.00016438,2]
[353590378,1739945443226,-151.0,0.00016438,2]
[353590380,1739945443235,-151.0,0.00016438,2]
[353590382,1739945443244,-1425.948058,0.00016438,2]
[353590384,1739945443254,-161.519131,0.00016438,2]
[353590386,1739945443263,-500.0,0.00016438,2]
[353590388,1739945443272,-500.0,0.00016438,2]
[353590390,1739945443281,-500.0,0.00016438,2]
[353590393,1739945443290,-500.0,0.00016438,2]
[353590395,1739945443310,-500.0,0.00016438,2]
[353590397,1739945443320,-1407.82,0.00016438,2]
[353590399,1739945443329,-156.222358,0.00016438,2]
[353590401,1739945443338,-500.0,0.00016438,2]
[353590403,1739945443348,-500.0,0.00016438,2]
[353590405,1739945443357,-500.0,0.00016438,2]
[353590407,1739945443367,-500.0,0.00016438,2]
[353590409,1739945443376,-1251.48,0.00016438,2]
[353590412,1739945443386,-500.0,0.00016438,2]
[353590414,1739945443395,-500.0,0.00016438,2]
[353590415,1739945443405,-500.0,0.00016438,2]
[353590417,1739945443415,-2.22950197,0.00016438,2]
[353590421,1739945443442,-497.77049803,0.00016438,2]
[353590423,1739945443452,-500.0,0.00016438,2]
[353590425,1739945443462,-500.0,0.00016438,2]
[353590427,1739945443471,-508.92659123,0.00016438,2]
[353590430,1739945443481,-500.0,0.00016438,2]
[353590432,1739945443490,-500.0,0.00016438,2]
[353590434,1739945443499,-502.93289715,0.00016438,2]
[353590436,1739945443508,-500.0,0.00016438,2]
[353590438,1739945443518,-500.0,0.00016438,2]
[353590439,1739945443527,-551.9296173,0.00016438,2]
[353590441,1739945443537,-500.0,0.00016438,2]
[353590443,1739945443546,-500.0,0.00016438,2]
[353590445,1739945443556,-500.0,0.00016438,2]
[353590448,1739945443565,-500.0,0.00016438,2]
[353590449,1739945443574,-513.42112293,0.00016438,2]
[353590451,1739945443583,-500.0,0.00016438,2]
[353590454,1739945443593,-503.07085594,0.00016438,2]
[353590456,1739945443602,-500.0,0.00016438,2]
[353590458,1739945443612,-500.0,0.00016438,2]
[353590459,1739945443621,-500.0,0.00016438,2]
[353590461,1739945443631,-500.0,0.00016438,2]
[353590463,1739945443640,-500.0,0.00016438,2]
[353590465,1739945443649,-502.50015358,0.00016438,2]
[353590468,1739945443659,-500.0,0.00016438,2]
[353590470,1739945443669,-500.0,0.00016438,2]
[353590472,1739945443678,-1722.08,0.00016438,2]
[353590474,1739945443688,-500.0,0.00016438,2]
[353590476,1739945443697,-500.0,0.00016438,2]
[353590478,1739945443710,-500.0,0.00016438,2]
[353590480,1739945443719,-500.0,0.00016438,2]
[353590482,1739945443729,-500.0,0.00016438,2]
[353590484,1739945443741,-894.77,0.00016438,2]
[353590486,1739945443751,-500.0,0.00016438,2]
[353590488,1739945443761,-500.0,0.00016438,2]
[353590490,1739945443770,-500.0,0.00016438,2]
[353590491,1739945443780,-504.51118405,0.00016438,2]
[353590493,1739945443789,-500.0,0.00016438,2]
[353590495,1739945443798,-581.77,0.00016438,2]
[353590497,1739945443808,-500.0,0.00016438,2]
[353590500,1739945443818,-500.0,0.00016438,2]
[353590502,1739945443827,-500.0,0.00016438,2]
[353590532,1739945443835,-502.09747268,0.00016438,2]
[353590536,1739945444147,-500.0,0.00016438,2]
[353590538,1739945444157,-500.0,0.00016438,2]
[353590540,1739945444167,-869.46,0.00016438,2]
[353590542,1739945444177,-500.0,0.00016438,2]
[353590544,1739945444186,-500.0,0.00016438,2]
[353590546,1739945444195,-500.0,0.00016438,2]
[353590548,1739945444204,-500.0,0.00016438,2]
[353590550,1739945444214,-1026.31,0.00016438,2]
[353590551,1739945444223,-500.0,0.00016438,2]
[353590553,1739945444232,-500.0,0.00016438,2]
[353590555,1739945444241,-500.0,0.00016438,2]
[353590557,1739945444251,-500.0,0.00016438,2]
[353590559,1739945444260,-1949.639044,0.00016438,2]
[353590561,1739945444270,-500.0,0.00016438,2]
[353590563,1739945444279,-500.0,0.00016438,2]
[353590565,1739945444288,-502.13280699,0.00016438,2]
[353590567,1739945444297,-500.0,0.00016438,2]
[353590569,1739945444306,-571.91191231,0.00016438,2]
[353590571,1739945444315,-767.08,0.00016438,2]
[353590573,1739945444325,-755.87,0.00016438,2]
[353590575,1739945444334,-500.0,0.00016438,2]
[353590577,1739945444344,-341.76764909,0.00016438,2]
[353590579,1739945444353,-624.76,0.00016438,2]
[353590581,1739945444363,-501.43744775,0.00016438,2]
[353590583,1739945444372,-500.0,0.00016438,2]
[353590585,1739945444382,-500.0,0.00016438,2]
[353590588,1739945444391,-613.54,0.00016438,2]
[353590589,1739945444401,-337.45402729,0.00016438,2]
[353590592,1739945444411,-500.0,0.00016438,2]
[353590594,1739945444420,-1056.81,0.00016438,2]
[353590595,1739945444429,-500.0,0.00016438,2]
[353590597,1739945444438,-500.0,0.00016438,2]
[353590600,1739945444447,-500.0,0.00016438,2]
[353590602,1739945444458,-500.0,0.00016438,2]
[353590604,1739945444467,-500.0,0.00016438,2]
[353590606,1739945444477,-500.0,0.00016438,2]
[353590608,1739945444487,-500.0,0.00016438,2]
[353590610,1739945444496,-500.0,0.00016438,2]
[353590612,1739945444505,-500.0,0.00016438,2]
[353590614,1739945444516,-500.0,0.00016438,2]
[353590616,1739945444525,-943.48,0.00016438,2]
[353590618,1739945444535,-646.69,0.00016438,2]
[353590619,1739945444544,-500.0,0.00016438,2]
[353590621,1739945444553,-500.0,0.00016438,2]
[353590623,1739945444562,-500.0,0.00016438,2]
[353590625,1739945444571,-500.0,0.00016438,2]
[353590628,1739945444580,-500.0,0.00016438,2]
[353590629,1739945444589,-500.0,0.00016438,2]
[353590632,1739945444599,-500.0,0.00016438,2]
[353590634,1739945444608,-1035.94,0.00016438,2]
[353590635,1739945444617,-529.41,0.00016438,2]
[353590637,1739945444626,-316.48624862,0.00016438,2]
[353590640,1739945444636,-500.0,0.00016438,2]
[353590642,1739945444645,-500.0,0.00016438,2]
[353590644,1739945444655,-1329.8,0.00016438,2]
[353590645,1739945444664,-500.0,0.00016438,2]
[353590647,1739945444673,-503.96509475,0.00016438,2]
[353590648,1739945444684,-530.45606688,0.00016438,2]
[353590649,1739945444693,-500.0,0.00016438,2]
[353590650,1739945444703,-500.0,0.00016438,2]
[353590651,1739945444713,-746.93,0.00016438,2]
[353590652,1739945444722,-1008.96,0.00016438,2]
[353590653,1739945444732,-530.34799012,0.00016438,2]
[353590654,1739945444741,-597.7,0.00016438,2]
[353590656,1739945444750,-509.20541903,0.00016438,2]
[353590658,1739945444760,-500.0,0.00016438,2]
[353590659,1739945444770,-500.0,0.00016438,2]
[353590660,1739945444779,-500.0,0.00016438,2]
[353590661,1739945444788,-695.01,0.00016438,2]
[353590662,1739945444798,-500.0,0.00016438,2]
[353590663,1739945444807,-596.74,0.00016438,2]
[353590664,1739945444817,-500.0,0.00016438,2]
[353590665,1739945444826,-855.34,0.00016438,2]
[353590666,1739945444835,-500.0,0.00016438,2]
[353590667,1739945444844,-1145.78,0.00016438,2]
[353590668,1739945444854,-500.0,0.00016438,2]
[353590670,1739945444863,-1089.62,0.00016438,2]
[353590671,1739945444872,-500.0,0.00016438,2]
[353590673,1739945444881,-500.0,0.00016438,2]
[353590675,1739945444891,-500.0,0.00016438,2]
[353590676,1739945444900,-500.0,0.00016438,2]
[353590677,1739945444910,-500.0,0.00016438,2]
[353590678,1739945444919,-758.17,0.00016438,2]
[353590679,1739945444934,-691.19,0.00016438,2]
[353590680,1739945444943,-500.0,0.00016438,2]
[353590681,1739945444953,-500.0,0.00016438,2]
[353590682,1739945444962,-503.2667122,0.00016438,2]
[353590683,1739945444971,-509.23,0.00016438,2]
[353590684,1739945444980,-500.0,0.00016438,2]
[353590685,1739945444990,-883.21,0.00016438,2]
[353590686,1739945444999,-692.92,0.00016438,2]
[353590687,1739945445013,-500.0,0.00016438,2]
[353590688,1739945445024,-545.68,0.00016438,2]
[353590689,1739945445033,-500.0,0.00016438,2]
[353590690,1739945445043,-553.42,0.00016438,2]
[353590691,1739945445053,-517.59222113,0.00016438,2]
[353590692,1739945445062,-500.0,0.00016438,2]
[353590693,1739945445072,-505.9577513,0.00016438,2]
[353590694,1739945445082,-500.0,0.00016438,2]
[353590695,1739945445091,-613.63,0.00016438,2]
[353590696,1739945445101,-525.74,0.00016438,2]
[353590697,1739945445110,-500.0,0.00016438,2]
[353590698,1739945445120,-500.0,0.00016438,2]
[353590699,1739945445131,-504.88213055,0.00016438,2]
[353590700,1739945445142,-500.0,0.00016438,2]
[353590701,1739945445154,-500.0,0.00016438,2]
[353590702,1739945445165,-500.0,0.00016438,2]
[353590703,1739945445177,-765.32,0.00016438,2]
[353590704,1739945445186,-500.0,0.00016438,2]
[353590705,1739945445196,-620.13,0.00016438,2]
[353590706,1739945445207,-500.0,0.00016438,2]
[353590707,1739945445217,-502.6031329,0.00016438,2]
[353590708,1739945445227,-647.09,0.00016438,2]
[353590709,1739945445237,-500.0,0.00016438,2]
[353590710,1739945445247,-626.84,0.00016438,2]
[353590711,1739945445258,-505.87997922,0.00016438,2]
[353590712,1739945445267,-1164.47,0.00016438,2]
[353590713,1739945445277,-500.0,0.00016438,2]
[353590714,1739945445289,-500.0,0.00016438,2]
[353590715,1739945445299,-151.0,0.00016438,2]
[353590716,1739945445308,-151.0,0.00016438,2]
[353590717,1739945445318,-500.0,0.00016438,2]
[353590718,1739945445327,-151.0,0.00016438,2]
[353590719,1739945445337,-151.0,0.00016438,2]
[353590720,1739945445347,-648.34,0.00016438,2]
[353590721,1739945445357,-151.0,0.00016438,2]
[353590722,1739945445366,-151.0,0.00016438,2]
[353590723,1739945445376,-500.0,0.00016438,2]
[353590724,1739945445385,-151.0,0.00016438,2]
[353590725,1739945445395,-500.0,0.00016438,2]
[353590726,1739945445404,-500.0,0.00016438,2]
[353590727,1739945445413,-513.08,0.00016438,2]
[353590728,1739945445423,-500.0,0.00016438,2]
[353590729,1739945445432,-500.0,0.00016438,2]
[353590730,1739945445441,-187.13063,0.00016438,2]
[353590731,1739945445452,-500.0,0.00016438,2]
[353590732,1739945445462,-500.0,0.00016438,2]
[353590733,1739945445472,-687.99,0.00016438,2]
[353590734,1739945445481,-500.0,0.00016438,2]
[353590735,1739945445492,-151.0,0.00016438,2]
[353590736,1739945445501,-151.0,0.00016438,2]
[353590737,1739945445511,-500.0,0.00016438,2]
[353590738,1739945445520,-151.0,0.00016438,2]
[353590739,1739945445529,-524.92684182,0.00016438,2]
[353590740,1739945445538,-151.0,0.00016438,2]
[353590741,1739945445547,-151.0,0.00016438,2]
[353590742,1739945445556,-165.947834,0.00016438,2]
[353590743,1739945445565,-500.0,0.00016438,2]
[353590744,1739945445575,-500.0,0.00016438,2]
[353590745,1739945445584,-927.19,0.00016438,2]
[353590746,1739945445593,-658.34,0.00016438,2]
[353590747,1739945445602,-500.0,0.00016438,2]
[353590748,1739945445612,-500.0,0.00016438,2]
[353590749,1739945445621,-500.0,0.00016438,2]
[353590750,1739945445630,-510.84061399,0.00016438,2]
[353590751,1739945445640,-500.0,0.00016438,2]
[353590752,1739945445658,-500.0,0.00016438,2]
[353590753,1739945445668,-757.03,0.00016438,2]
[353590754,1739945445677,-500.0,0.00016438,2]
[353590755,1739945445686,-688.61,0.00016438,2]
[353590756,1739945445696,-500.0,0.00016438,2]
[353590757,1739945445706,-500.0,0.00016438,2]
[353590758,1739945445715,-591.88,0.00016438,2]
[353590759,1739945445726,-500.0,0.00016438,2]
[353590760,1739945445735,-500.0,0.00016438,2]
[353590761,1739945445745,-504.31806188,0.00016438,2]
[353590762,1739945445754,-722.15,0.00016438,2]
[353590763,1739945445764,-507.86660413,0.00016438,2]
[353590764,1739945445773,-500.0,0.00016438,2]
[353590765,1739945445782,-580.55,0.00016438,2]
[353590766,1739945445792,-500.0,0.00016438,2]
[353590767,1739945445801,-500.0,0.00016438,2]
[353590768,1739945445810,-500.0,0.00016438,2]
[353590769,1739945445819,-633.0,0.00016438,2]
[353590770,1739945445829,-656.98,0.00016438,2]
[353590771,1739945445838,-500.0,0.00016438,2]
[353590772,1739945445848,-1751.199233,0.00016438,2]
[353590773,1739945445857,-500.0,0.00016438,2]
[353590774,1739945445866,-500.0,0.00016438,2]
[353590775,1739945445876,-1751.199233,0.00016438,2]
[353590776,1739945445885,-1751.199233,0.00016438,2]
[353590777,1739945445895,-500.0,0.00016438,2]
[353590778,1739945445904,-1751.199233,0.00016438,2]
[353590779,1739945445913,-1751.199233,0.00016438,2]
[353590781,1739945445923,-1751.199233,0.00016438,2]
[353590783,1739945445933,-796.32,0.00016438,2]
[353590785,1739945445942,-1186.15,0.00016438,2]
[353590786,1739945445952,-500.0,0.00016438,2]
[353590787,1739945445963,-1751.199233,0.00016438,2]
[353590788,1739945445972,-1751.199233,0.00016438,2]
[353590789,1739945445981,-1751.199233,0.00016438,2]
[353590790,1739945445991,-632.71,0.00016438,2]
[353590791,1739945446001,-1751.199233,0.00016438,2]
[353590792,1739945446013,-500.0,0.00016438,2]
[353590793,1739945446023,-464.56176965,0.00016438,2]
[353590794,1739945446031,-1751.199233,0.00016438,2]
[353590795,1739945446042,-1751.199233,0.00016438,2]
[353590796,1739945446051,-500.0,0.00016438,2]
[353590797,1739945446061,-500.0,0.00016438,2]
[353590798,1739945446070,-1017.63,0.00016438,2]
[353590799,1739945446080,-500.0,0.00016438,2]
[353590800,1739945446090,-1079.56,0.00016438,2]
[353590801,1739945446101,-719.81,0.00016438,2]
[353590802,1739945446110,-500.0,0.00016438,2]
[353590803,1739945446120,-500.0,0.00016438,2]
[353590804,1739945446130,-766.68,0.00016438,2]
[353590805,1739945446140,-959.83,0.00016438,2]
[353590806,1739945446149,-873.48,0.00016438,2]
[353590807,1739945446159,-500.0,0.00016438,2]
[353590808,1739945446169,-500.0,0.00016438,2]
[353590809,1739945446179,-500.0,0.00016438,7]
[353590810,1739945446188,-500.0,0.00016438,2]
[353590811,1739945446198,-1196.02,0.00016438,2]
[353590812,1739945446208,-500.0,0.00016438,2]
[353590813,1739945446217,-500.0,0.00016438,2]
[353590814,1739945446226,-1052.94,0.00016438,2]
[353590815,1739945446236,-555.07,0.00016438,2]
[353590816,1739945446246,-407.84811994,0.00016438,2]
[353590817,1739945446256,-740.82,0.00016438,2]
[353590818,1739945446265,-541.32720369,0.00016438,2]
[353590819,1739945446274,-500.0,0.00016438,2]
[353590820,1739945446284,-604.12,0.00016438,2]
[353590821,1739945446293,-500.0,0.00016438,2]
[353590822,1739945446302,-500.0,0.00016438,2]
[353590823,1739945446311,-500.0,0.00016438,2]
[353590824,1739945446321,-500.0,0.00016438,2]
[353590825,1739945446330,-500.0,0.00016438,2]
[353590826,1739945446339,-500.0,0.00016438,2]
[353590827,1739945446348,-500.0,0.00016438,2]
[353590828,1739945446358,-500.0,0.00016438,2]
[353590829,1739945446367,-500.0,0.00016438,2]
[353590830,1739945446377,-822.49,0.00016438,2]
[353590831,1739945446386,-500.0,0.00016438,2]
[353590833,1739945446396,-500.0,0.00016438,2]
[353590835,1739945446405,-209.36829082,0.00016438,2]
[353590836,1739945446443,-290.63170918,0.00016438,2]
[353590837,1739945446453,-500.0,0.00016438,2]
[353590838,1739945446463,-500.0,0.00016438,2]
[353590839,1739945446472,-1007.85,0.00016438,2]
[353590840,1739945446482,-500.0,0.00016438,2]
[353590841,1739945446492,-500.0,0.00016438,2]
[353590842,1739945446503,-151.0,0.00016438,2]
[353590843,1739945446513,-151.0,0.00016438,2]
[353590844,1739945446523,-500.0,0.00016438,2]
[353590845,1739945446532,-500.0,0.00016438,2]
[353590846,1739945446542,-151.0,0.00016438,2]
[353590847,1739945446551,-500.0,0.00016438,2]
[353590848,1739945446561,-151.0,0.00016438,2]
[353590849,1739945446571,-151.0,0.00016438,2]
[353590850,1739945446581,-193.031114,0.00016438,2]
[353590851,1739945446591,-500.0,0.00016438,2]
[353590852,1739945446600,-683.5,0.00016438,2]
[353590853,1739945446610,-689.49,0.00016438,2]
[353590854,1739945446620,-500.0,0.00016438,2]
[353590855,1739945446630,-500.0,0.00016438,2]
[353590856,1739945446641,-500.0,0.00016438,2]
[353590857,1739945446650,-687.88,0.00016438,2]
[353590858,1739945446659,-500.0,0.00016438,2]
[353590859,1739945446668,-500.0,0.00016438,2]
[353590860,1739945446677,-500.0,0.00016438,2]
[353590861,1739945446687,-500.0,0.00016438,2]
[353590862,1739945446696,-500.0,0.00016438,2]
[353590863,1739945446706,-500.0,0.00016438,2]
[353590864,1739945446715,-500.0,0.00016438,2]
[353590865,1739945446725,-500.0,0.00016438,2]
[353590866,1739945446735,-500.0,0.00016438,2]
[353590867,1739945446744,-679.34,0.00016438,2]
[353590868,1739945446759,-500.0,0.00016438,2]
[353590869,1739945446768,-500.0,0.00016438,2]
[353590870,1739945446778,-500.0,0.00016438,2]
[353590871,1739945446787,-500.0,0.00016438,2]
[353590872,1739945446797,-500.0,0.00016438,2]
[353590873,1739945446807,-556.34,0.00016438,2]
[353590874,1739945446816,-926.98,0.00016438,2]
[353590875,1739945446825,-500.0,0.00016438,2]
[353590876,1739945446835,-500.0,0.00016438,2]
[353590877,1739945446844,-500.0,0.00016438,2]
[353590878,1739945446854,-500.0,0.00016438,2]
[353590879,1739945446864,-500.0,0.00016438,2]
[353590880,1739945446874,-500.0,0.00016438,2]
[353590881,1739945446883,-456.20809768,0.00016438,2]
[353590882,1739945446896,-811.29,0.00016438,2]
[353590883,1739945446906,-500.0,0.00016438,2]
[353590884,1739945446915,-500.0,0.00016438,2]
[353590885,1739945446927,-813.44,0.00016438,2]
[353590886,1739945446937,-500.0,0.00016438,2]
[353590887,1739945446947,-500.0,0.00016438,2]
[353590888,1739945446959,-500.0,0.00016438,2]
[353590889,1739945446969,-500.0,0.00016438,2]
[353590890,1739945446978,-507.44515075,0.00016438,2]
[353590891,1739945446988,-500.0,0.00016438,2]